[Event "XXXI Torre Memorial 2019"]
[Site "Merida"]
[Date "2019.12.14"]
[Round "2.7"]
[White "Diaz Rosas, Julio Cesar"]
[Black "Macieja, Bartlomiej"]
[Result "0-1"]
[ECO "B12"]
[WhiteElo "2365"]
[BlackElo "2513"]
[Annotator "ChessBase"]
[PlyCount "85"]
[EventDate "2019.12.13"]
[EventType "swiss"]
[EventCountry "MEX"]
[SourceTitle "playchess.com"]
[Source "ChessBase"]
[SourceQuality "1"]
[TimeControl "5400+30"]

1. e4 {[%emt 0:07:36]} c6 {[%emt 0:00:00]} 2. d4 {[%emt 0:00:13]} d5 {[%emt 0:00:00]} 3. e5 {[%emt 0:00:09]} Bf5 {[%emt 0:00:00]} 4. Nf3 {[%emt 0:00:10]} e6 {[%emt 0:00:00]} 5. Be2 {[%emt 0:00:10]} Ne7 {[%emt 0:00:00]} 6. O-O {[%emt 0:00:14]} c5 {[%emt 0:00:30]} 7. Na3 {[%emt 0:00:45]} Nec6 {[%emt 0:15:36]} 8. c4 {[%emt 0:00:13]} Be4 {[%emt 0:32:19]} 9. Nb5 {[%emt 0:33:18]} Be7 {[%emt 0:44:12]} 10. dxc5 {[%emt 0:14:51]} Bxc5 {[%emt 0:00:01]} 11. Ng5 {[%emt 0:08:17]} Na6 {[%emt 0:01:44]} 12. Nd6+ {[%emt 0:00:30]} Bxd6 {[%emt 0:00:02]} 13. exd6 {[%emt 0:00:08]} O-O {[%emt 0:00:34]} 14. a3 {[%emt 0:04:58]} Qf6 {[%emt 0:00:54]} 15. Be3 {[%emt 0:02:28]} Qxb2 {[%emt 0:00:53]} 16. Nxe4 {[%emt 0:04:06]} dxe4 {[%emt 0:00:01]} 17. Rb1 {[%emt 0:05:25]} Qxa3 {[%emt 0:00:02]} 18. Rxb7 {[%emt 0:00:58]} Rab8 {[%emt 0:00:06]} 19. Rxb8 {[%emt 0:00:37]} Ncxb8 {[%emt 0:00:49]} 20. Bxa7 {[%emt 0:02:52]} Nd7 {[%emt 0:00:34]} 21. Qd4 {[%emt 0:02:19]} Nab8 {[%emt 0:01:24]} 22. Ra1 {[%emt 0:00:42]} Qb4 {[%emt 0:00:01]} 23. Qxe4 {[%emt 0:08:35]} Qxd6 {[%emt 0:00:05]} 24. Be3 {[%emt 0:00:44]} Nc5 {[%emt 0:00:40]} 25. Qh4 {[%emt 0:00:56]} Nbd7 {[%emt 0:01:16]} 26. Rd1 {[%emt 0:00:10]} Qb8 {[%emt 0:00:44]} 27. Qe7 {[%emt 0:00:31]} Re8 {[%emt 0:00:08]} 28. Qh4 {[%emt 0:00:52]} h6 {[%emt 0:00:32]} 29. h3 {[%emt 0:00:07]} Qb2 {[%emt 0:00:41]} 30. Bf3 {[%emt 0:00:59]} Qc2 {[%emt 0:00:16]} 31. Qg3 {[%emt 0:00:57]} Ne4 {[%emt 0:00:48]} 32. Qc7 {[%emt 0:00:37]} Ndf6 {[%emt 0:00:04]} 33. Rc1 {[%emt 0:00:30]} Qb2 {[%emt 0:00:33]} 34. Qb6 Qa3 {[%emt 0:00:58]} 35. Qc6 {[%emt 0:00:44]} Nc3 {[%emt 0:00:22]} 36. Qc5 {[%emt 0:00:45]} Qb2 {[%emt 0:00:33]} 37. Kh2 {[%emt 0:00:27]} Qb8+ {[%emt 0:00:34]} 38. g3 {[%emt 0:00:22]} Nce4 {[%emt 0:00:32]} 39. Qb5 {[%emt 0:00:27]} Qc8 {[%emt 0:00:30]} 40. c5 {[%emt 0:00:17]} Ng5 {[%emt 0:00:16]} 41. Bb7 {[%emt 0:00:52]} Qc7 {[%emt 0:00:24]} 42. Qb6 Qe5 43. Bg2 0-1

[Event "XXXI Torre Memorial 2019"]
[Site "Merida"]
[Date "2019.12.14"]
[Round "2.9"]
[White "Fernandez Mayola, Reynold Rafael"]
[Black "Santiago, Yago De Moura"]
[Result "0-1"]
[ECO "A34"]
[WhiteElo "2328"]
[BlackElo "2479"]
[Annotator "ChessBase"]
[PlyCount "64"]
[EventDate "2019.12.13"]
[EventType "swiss"]
[EventCountry "MEX"]
[SourceTitle "playchess.com"]
[Source "ChessBase"]
[SourceQuality "1"]
[TimeControl "5400+30"]

1. Nf3 {[%emt 0:00:00]} Nf6 {[%emt 0:00:17]} 2. c4 {[%emt 0:00:00]} c5 {[%emt 0:01:40]} 3. Nc3 {[%emt 0:00:29]} d5 {[%emt 0:00:11]} 4. cxd5 {[%emt 0:00:26]} Nxd5 {[%emt 0:00:08]} 5. d4 {[%emt 0:00:04]} e6 {[%emt 0:08:34]} 6. e4 {[%emt 0:00:23]} Nxc3 {[%emt 0:00:08]} 7. bxc3 {[%emt 0:00:04]} cxd4 {[%emt 0:00:08]} 8. cxd4 {[%emt 0:00:04]} Bb4+ {[%emt 0:00:10]} 9. Bd2 {[%emt 0:00:03]} Bxd2+ {[%emt 0:00:11]} 10. Qxd2 {[%emt 0:00:10]} O-O {[%emt 0:00:21]} 11. Bc4 {[%emt 0:00:40]} Nc6 {[%emt 0:01:42]} 12. O-O {[%emt 0:07:34]} b6 {[%emt 0:01:30]} 13. Rad1 {[%emt 0:15:18]} Na5 {[%emt 0:01:45]} 14. Bd3 {[%emt 0:02:13]} Bb7 {[%emt 0:00:13]} 15. Qf4 {[%emt 0:01:36]} Rc8 {[%emt 0:21:17]} 16. d5 {[%emt 0:00:49]} Qf6 {[%emt 0:01:03]} 17. Qg3 {[%emt 0:08:48]} g6 {[%emt 0:32:32]} 18. Ne5 {[%emt 0:10:32]} Qe7 {[%emt 0:06:11]} 19. Ng4 {[%emt 0:20:55]} exd5 {[%emt 0:01:25]} 20. e5 {[%emt 0:00:06]} Rc7 {[%emt 0:05:05]} 21. Nf6+ {[%emt 0:03:56]} Kg7 {[%emt 0:00:41]} 22. f4 {[%emt 0:07:44]} Nc6 {[%emt 0:05:14]} 23. Kh1 {[%emt 0:08:42]} Rd8 {[%emt 0:02:50]} 24. Nxh7 {[%emt 0:07:40]} Kxh7 {[%emt 0:01:32]} 25. f5 {[%emt 0:00:01]} Qxe5 {[%emt 0:01:00]} 26. Rf4 {[%emt 0:02:18]} Kg8 {[%emt 0:01:13]} 27. Re1 {[%emt 0:01:28]} Qd6 {[%emt 0:00:51]} 28. f6 {[%emt 0:01:03]} Ne5 {[%emt 0:02:14]} 29. Qg5 {[%emt 0:00:52]} Nxd3 {[%emt 0:00:19]} 30. Rh4 {[%emt 0:00:04]} Qf8 {[%emt 0:01:24]} 31. Qg3 {[%emt 0:00:02]} Rc4 {[%emt 0:01:53]} 32. Rh5 {[%emt 0:01:24]} Rg4 {[%emt 0:01:13]} 0-1

[Event "XXXI Torre Memorial 2019"]
[Site "Merida"]
[Date "2019.12.14"]
[Round "2.10"]
[White "Miranda Mesa, Elier"]
[Black "Dieguez Alvarez, Mario Enrique"]
[Result "1-0"]
[ECO "B85"]
[WhiteElo "2477"]
[BlackElo "2304"]
[Annotator "ChessBase"]
[PlyCount "47"]
[EventDate "2019.12.13"]
[EventType "swiss"]
[EventCountry "MEX"]
[SourceTitle "playchess.com"]
[Source "ChessBase"]
[SourceQuality "1"]
[TimeControl "5400+30"]

1. e4 {[%emt 0:00:00]} c5 {[%emt 0:09:39]} 2. Nf3 {[%emt 0:00:00]} e6 {[%emt 0:00:10]} 3. d4 {[%emt 0:00:08]} cxd4 {[%emt 0:00:13]} 4. Nxd4 {[%emt 0:00:09]} a6 {[%emt 0:00:15]} 5. Be2 {[%emt 0:05:19]} Nf6 {[%emt 0:02:01]} 6. Nc3 {[%emt 0:00:23]} Qc7 {[%emt 0:01:00]} 7. O-O {[%emt 0:00:23]} d6 {[%emt 0:02:35]} 8. f4 {[%emt 0:02:25]} Be7 {[%emt 0:01:42]} 9. Be3 {[%emt 0:05:14]} O-O {[%emt 0:01:53]} 10. a4 {[%emt 0:04:11]} Nc6 {[%emt 0:03:21]} 11. Kh1 Bd7 {[%emt 0:05:17]} 12. Nb3 {[%emt 0:13:12]} Na5 {[%emt 0:03:20]} 13. e5 {[%emt 0:07:27]} dxe5 {[%emt 0:11:57]} 14. fxe5 {[%emt 0:01:22]} Nd5 {[%emt 0:00:05]} 15. Nxd5 {[%emt 0:03:04]} exd5 {[%emt 0:02:01]} 16. Nxa5 {[%emt 0:00:44]} Qxa5 {[%emt 0:00:08]} 17. Bd3 {[%emt 0:00:51]} Be6 {[%emt 0:04:18]} 18. Qh5 {[%emt 0:10:10]} g6 {[%emt 0:01:33]} 19. Qe2 {[%emt 0:10:31]} Rfe8 {[%emt 0:05:24]} 20. Qf2 {[%emt 0:02:15]} Qc7 {[%emt 0:01:44]} 21. Qg3 {[%emt 0:00:20]} Bf8 {[%emt 0:01:42]} 22. Bg5 {[%emt 0:01:07]} Bg7 {[%emt 0:07:38]} 23. Rae1 {[%emt 0:04:03]} Bd7 {[%emt 0:02:17]} 24. e6 {[%emt 0:02:56]} 1-0

[Event "XXXI Torre Memorial 2019"]
[Site "Merida"]
[Date "2019.12.14"]
[Round "2.11"]
[White "Martin Del Campo C., Roberto"]
[Black "Hevia Alejano, Carlos Antonio"]
[Result "0-1"]
[ECO "B82"]
[WhiteElo "2314"]
[BlackElo "2465"]
[Annotator "ChessBase"]
[PlyCount "66"]
[EventDate "2019.12.13"]
[EventType "swiss"]
[EventCountry "MEX"]
[SourceTitle "playchess.com"]
[Source "ChessBase"]
[SourceQuality "1"]
[TimeControl "5400+30"]

1. e4 {[%emt 0:07:49]} c5 {[%emt 0:00:50]} 2. Nf3 {[%emt 0:01:20]} e6 {[%emt 0:00:10]} 3. d4 {[%emt 0:02:01]} cxd4 {[%emt 0:03:32]} 4. Nxd4 {[%emt 0:00:13]} Nf6 {[%emt 0:02:27]} 5. Nc3 {[%emt 0:00:30]} d6 {[%emt 0:00:10]} 6. f4 {[%emt 0:01:00]} a6 {[%emt 0:01:33]} 7. Qf3 {[%emt 0:00:19]} Qc7 {[%emt 0:00:14]} 8. Bd3 {[%emt 0:00:31]} g6 {[%emt 0:13:53]} 9. Be3 {[%emt 0:05:17]} Bg7 {[%emt 0:04:15]} 10. O-O-O {[%emt 0:06:13]} O-O {[%emt 0:02:16]} 11. g4 {[%emt 0:13:54]} b5 {[%emt 0:00:51]} 12. h4 {[%emt 0:02:20]} b4 {[%emt 0:06:58]} 13. Nce2 {[%emt 0:02:29]} Nbd7 {[%emt 0:06:56]} 14. g5 {[%emt 0:04:10]} Nh5 {[%emt 0:00:53]} 15. Ng3 {[%emt 0:00:31]} Nxg3 {[%emt 0:01:08]} 16. Qxg3 {[%emt 0:00:08]} Nc5 {[%emt 0:00:01]} 17. Kb1 {[%emt 0:08:05]} Bb7 {[%emt 0:00:31]} 18. Qg2 {[%emt 0:05:50]} e5 {[%emt 0:10:08]} 19. Ne2 {[%emt 0:09:05]} exf4 {[%emt 0:11:46]} 20. Bxf4 {[%emt 0:05:49]} Rfe8 {[%emt 0:00:12]} 21. Ng3 {[%emt 0:00:33]} Na4 {[%emt 0:00:18]} 22. h5 {[%emt 0:05:14]} Nxb2 {[%emt 0:01:59]} 23. hxg6 {[%emt 0:04:23]} hxg6 {[%emt 0:02:28]} 24. Qh2 {[%emt 0:03:02]} Nxd1 {[%emt 0:03:15]} 25. Nf5 {[%emt 0:00:35]} gxf5 {[%emt 0:00:57]} 26. Bxd6 {[%emt 0:00:48]} Nc3+ {[%emt 0:00:37]} 27. Kc1 {[%emt 0:00:43]} Nxa2+ {[%emt 0:00:42]} 28. Kb1 {[%emt 0:00:16]} Nc3+ {[%emt 0:00:13]} 29. Kc1 {[%emt 0:00:04]} Qxd6 {[%emt 0:00:24]} 30. Qxd6 {[%emt 0:00:05]} b3 {[%emt 0:02:10]} 31. g6 {[%emt 0:04:57]} b2+ {[%emt 0:00:05]} 32. Kd2 {[%emt 0:00:04]} Nxe4+ {[%emt 0:00:41]} 33. Bxe4 {[%emt 0:00:05]} Rad8 {[%emt 0:00:32]} 0-1

[Event "XXXI Torre Memorial 2019"]
[Site "Merida"]
[Date "2019.12.14"]
[Round "2.12"]
[White "Rodriguez Vila, Andres"]
[Black "Amaro Alfonso, Raynner"]
[Result "1/2-1/2"]
[ECO "A45"]
[WhiteElo "2463"]
[BlackElo "2296"]
[Annotator "ChessBase"]
[PlyCount "56"]
[EventDate "2019.12.13"]
[EventType "swiss"]
[EventCountry "MEX"]
[SourceTitle "playchess.com"]
[Source "ChessBase"]
[SourceQuality "1"]
[TimeControl "5400+30"]

1. d4 {[%emt 0:00:00]} Nf6 {[%emt 0:00:00]} 2. Nc3 {[%emt 0:00:00]} d5 {[%emt 0:00:00]} 3. Bf4 {[%emt 0:00:00]} e6 {[%emt 0:00:00]} 4. e3 {[%emt 0:00:09]} Bb4 {[%emt 0:02:07]} 5. Nge2 {[%emt 0:01:24]} O-O {[%emt 0:00:21]} 6. a3 {[%emt 0:00:53]} Bd6 {[%emt 0:00:46]} 7. Qd2 {[%emt 0:00:11]} b6 {[%emt 0:01:00]} 8. f3 {[%emt 0:00:40]} Ba6 {[%emt 0:05:03]} 9. O-O-O {[%emt 0:00:34]} c5 {[%emt 0:01:20]} 10. g4 {[%emt 0:01:16]} Nc6 {[%emt 0:01:10]} 11. g5 {[%emt 0:00:07]} Ne8 {[%emt 0:00:23]} 12. h4 {[%emt 0:00:26]} Qe7 {[%emt 0:15:46]} 13. Kb1 {[%emt 0:00:50]} Na5 {[%emt 0:02:42]} 14. Bxd6 {[%emt 0:01:30]} Nxd6 {[%emt 0:01:07]} 15. Nf4 {[%emt 0:00:49]} Bxf1 {[%emt 0:00:50]} 16. Rdxf1 {[%emt 0:00:46]} Nac4 {[%emt 0:00:36]} 17. Qd3 {[%emt 0:01:09]} cxd4 {[%emt 0:00:38]} 18. exd4 {[%emt 0:01:20]} Nxb2 {[%emt 0:15:08]} 19. Kxb2 {[%emt 0:00:26]} Nc4+ {[%emt 0:00:04]} 20. Kb1 {[%emt 0:00:07]} Qxa3 {[%emt 0:00:04]} 21. Nd1 {[%emt 0:00:07]} Qb4+ {[%emt 0:00:09]} 22. Kc1 {[%emt 0:00:44]} Qa4 {[%emt 0:00:14]} 23. Qc3 {[%emt 0:02:35]} Rac8 {[%emt 0:05:42]} 24. Rf2 {[%emt 0:00:28]} Na5 {[%emt 0:01:57]} 25. Qb2 {[%emt 0:01:48]} Nc4 {[%emt 0:01:12]} 26. Qc3 {[%emt 0:00:16]} Na5 {[%emt 0:03:23]} 27. Qb2 {[%emt 0:02:19]} Nc4 {[%emt 0:00:13]} 28. Qc3 {[%emt 0:00:20]} Na5 {[%emt 0:00:06]} 1/2-1/2

[Event "XXXI Torre Memorial 2019"]
[Site "Merida"]
[Date "2019.12.14"]
[Round "2.13"]
[White "Noboa Silva, Kevin"]
[Black "Fernandez De La Vara, Arnaldo"]
[Result "1/2-1/2"]
[ECO "E46"]
[WhiteElo "2306"]
[BlackElo "2463"]
[Annotator "ChessBase"]
[PlyCount "64"]
[EventDate "2019.12.13"]
[EventType "swiss"]
[EventCountry "MEX"]
[SourceTitle "playchess.com"]
[Source "ChessBase"]
[SourceQuality "1"]
[TimeControl "5400+30"]

1. d4 {[%emt 0:03:37]} Nf6 {[%emt 0:00:00]} 2. c4 {[%emt 0:00:14]} e6 {[%emt 0:00:17]} 3. Nc3 {[%emt 0:00:25]} Bb4 {[%emt 0:00:08]} 4. e3 {[%emt 0:00:12]} O-O {[%emt 0:01:50]} 5. Nge2 {[%emt 0:00:40]} d5 {[%emt 0:00:29]} 6. a3 {[%emt 0:00:28]} Be7 {[%emt 0:01:50]} 7. Ng3 {[%emt 0:00:41]} Re8 {[%emt 0:00:28]} 8. Qc2 {[%emt 0:01:25]} c6 {[%emt 0:00:23]} 9. Be2 {[%emt 0:00:31]} Nbd7 {[%emt 0:07:46]} 10. O-O {[%emt 0:01:07]} g6 {[%emt 0:04:56]} 11. Rd1 {[%emt 0:09:37]} dxc4 {[%emt 0:09:51]} 12. Bxc4 {[%emt 0:00:53]} b5 {[%emt 0:02:52]} 13. Be2 {[%emt 0:03:38]} Bb7 {[%emt 0:16:54]} 14. e4 {[%emt 0:18:21]} Rc8 {[%emt 0:01:20]} 15. Bg5 {[%emt 0:04:39]} Qb6 {[%emt 0:11:52]} 16. e5 {[%emt 0:09:10]} Nd5 {[%emt 0:00:17]} 17. Bxe7 {[%emt 0:00:50]} Rxe7 {[%emt 0:00:03]} 18. b4 {[%emt 0:09:13]} a5 {[%emt 0:00:47]} 19. Qb2 {[%emt 0:01:10]} axb4 {[%emt 0:00:41]} 20. axb4 {[%emt 0:00:06]} f6 {[%emt 0:02:11]} 21. exf6 {[%emt 0:01:19]} N7xf6 {[%emt 0:02:12]} 22. Nce4 {[%emt 0:01:45]} Rf8 {[%emt 0:05:42]} 23. Nc5 {[%emt 0:01:54]} Nf4 {[%emt 0:03:30]} 24. Re1 {[%emt 0:04:35]} Bc8 {[%emt 0:01:56]} 25. Bf3 {[%emt 0:01:55]} g5 {[%emt 0:02:22]} 26. Nge4 {[%emt 0:02:50]} g4 {[%emt 0:01:51]} 27. Nxf6+ {[%emt 0:02:00]} Rxf6 {[%emt 0:00:02]} 28. Bxg4 {[%emt 0:14:03]} Rg7 {[%emt 0:00:22]} 29. Ra8 {[%emt 0:01:37]} Qd8 {[%emt 0:13:46]} 30. Nxe6 Rxg4 31. Nxd8 Rxg2+ 32. Kh1 Rgg6 1/2-1/2

[Event "XXXI Torre Memorial 2019"]
[Site "Merida"]
[Date "2019.12.14"]
[Round "2.14"]
[White "Kevlishvili, Robby"]
[Black "Blanco Fernandez, Alvaro"]
[Result "1-0"]
[ECO "B32"]
[WhiteElo "2457"]
[BlackElo "2292"]
[Annotator "ChessBase"]
[PlyCount "81"]
[EventDate "2019.12.13"]
[EventType "swiss"]
[EventCountry "MEX"]
[SourceTitle "playchess.com"]
[Source "ChessBase"]
[SourceQuality "1"]
[TimeControl "5400+30"]

1. e4 {[%emt 0:08:22]} c5 {[%emt 0:00:00]} 2. Nf3 {[%emt 0:00:03]} Nc6 {[%emt 0:00:00]} 3. d4 {[%emt 0:00:05]} cxd4 {[%emt 0:00:00]} 4. Nxd4 {[%emt 0:00:03]} Qb6 {[%emt 0:00:51]} 5. Nb3 {[%emt 0:00:08]} Nf6 {[%emt 0:00:09]} 6. Nc3 {[%emt 0:00:13]} e6 {[%emt 0:00:05]} 7. a3 d6 {[%emt 0:02:18]} 8. Be3 {[%emt 0:00:47]} Qc7 {[%emt 0:00:08]} 9. f4 {[%emt 0:00:56]} a6 {[%emt 0:00:56]} 10. Qf3 {[%emt 0:00:56]} Rb8 {[%emt 0:01:49]} 11. Bd3 {[%emt 0:25:08]} b5 {[%emt 0:01:28]} 12. O-O {[%emt 0:00:36]} b4 {[%emt 0:01:45]} 13. axb4 {[%emt 0:01:47]} Nxb4 {[%emt 0:00:09]} 14. Na5 {[%emt 0:02:28]} Nd7 {[%emt 0:08:31]} 15. Qe2 {[%emt 0:03:31]} Be7 {[%emt 0:04:29]} 16. Bd4 {[%emt 0:05:12]} O-O {[%emt 0:04:16]} 17. Nd1 {[%emt 0:08:19]} Bf6 {[%emt 0:08:25]} 18. Bxf6 {[%emt 0:09:27]} Nxf6 {[%emt 0:01:00]} 19. Nf2 {[%emt 0:01:07]} e5 {[%emt 0:08:27]} 20. fxe5 {[%emt 0:00:27]} dxe5 {[%emt 0:00:02]} 21. Bc4 {[%emt 0:00:27]} Nc6 {[%emt 0:03:03]} 22. Nxc6 {[%emt 0:03:58]} Qxc6 {[%emt 0:00:02]} 23. b3 {[%emt 0:00:09]} Rb6 {[%emt 0:08:05]} 24. Ra5 {[%emt 0:00:58]} Be6 {[%emt 0:01:19]} 25. Bxa6 {[%emt 0:01:56]} Qc3 {[%emt 0:01:01]} 26. Rfa1 {[%emt 0:04:38]} Ra8 {[%emt 0:01:51]} 27. Qd3 {[%emt 0:00:27]} Qc7 {[%emt 0:01:31]} 28. Bc4 {[%emt 0:02:14]} Rd8 {[%emt 0:09:47]} 29. Bd5 {[%emt 0:01:07]} Bxd5 {[%emt 0:06:32]} 30. exd5 {[%emt 0:00:06]} Rb4 {[%emt 0:00:29]} 31. Ra8 {[%emt 0:03:21]} Rbb8 {[%emt 0:00:32]} 32. Rxb8 {[%emt 0:01:53]} Qxb8 {[%emt 0:00:01]} 33. c4 {[%emt 0:00:29]} e4 {[%emt 0:00:36]} 34. Nxe4 {[%emt 0:01:59]} Nxe4 {[%emt 0:01:49]} 35. Qxe4 {[%emt 0:00:23]} Qb6+ {[%emt 0:00:26]} 36. Kh1 {[%emt 0:00:05]} Qxb3 {[%emt 0:00:15]} 37. Qd4 {[%emt 0:00:13]} h5 {[%emt 0:00:30]} 38. d6 {[%emt 0:01:06]} Qb7 {[%emt 0:02:08]} 39. c5 {[%emt 0:00:28]} Qc6 {[%emt 0:00:19]} 40. Rd1 {[%emt 0:00:08]} Rd7 {[%emt 0:00:31]} 41. Qd5 {[%emt 0:00:18]} 1-0

[Event "XXXI Torre Memorial 2019"]
[Site "Merida"]
[Date "2019.12.14"]
[Round "2.15"]
[White "Galaviz Medina, Sion Radamantys"]
[Black "Diaz Perez, Michel Alejandro"]
[Result "0-1"]
[ECO "D52"]
[WhiteElo "2299"]
[BlackElo "2455"]
[Annotator "ChessBase"]
[PlyCount "96"]
[EventDate "2019.12.13"]
[EventType "swiss"]
[EventCountry "MEX"]
[SourceTitle "playchess.com"]
[Source "ChessBase"]
[SourceQuality "1"]
[TimeControl "5400+30"]

1. d4 {[%emt 0:00:08]} Nf6 {[%emt 0:01:02]} 2. Nf3 {[%emt 0:01:50]} e6 {[%emt 0:00:36]} 3. c4 {[%emt 0:14:16]} d5 {[%emt 0:04:19]} 4. Nc3 {[%emt 0:00:25]} Nbd7 {[%emt 0:00:06]} 5. Bg5 {[%emt 0:02:05]} c6 {[%emt 0:00:17]} 6. e3 {[%emt 0:03:28]} Qa5 {[%emt 0:00:39]} 7. cxd5 {[%emt 0:15:27]} Nxd5 {[%emt 0:00:32]} 8. Qb3 {[%emt 0:01:14]} Bb4 {[%emt 0:03:13]} 9. Rc1 {[%emt 0:01:13]} h6 {[%emt 0:01:47]} 10. Bh4 {[%emt 0:01:00]} b6 {[%emt 0:04:11]} 11. Nd2 {[%emt 0:06:54]} Ba6 {[%emt 0:07:03]} 12. Bxa6 {[%emt 0:10:54]} Bxc3 {[%emt 0:00:48]} 13. bxc3 {[%emt 0:00:02]} Qxa6 {[%emt 0:00:12]} 14. c4 {[%emt 0:00:03]} Ne7 {[%emt 0:05:54]} 15. e4 {[%emt 0:04:00]} Ng6 {[%emt 0:05:56]} 16. Bg3 {[%emt 0:00:19]} Qa5 {[%emt 0:02:23]} 17. Qe3 {[%emt 0:04:00]} e5 {[%emt 0:04:15]} 18. dxe5 {[%emt 0:02:35]} Ndxe5 {[%emt 0:04:21]} 19. O-O {[%emt 0:00:57]} Rd8 {[%emt 0:01:48]} 20. Rc2 {[%emt 0:03:14]} O-O {[%emt 0:05:27]} 21. f4 {[%emt 0:02:33]} Ng4 {[%emt 0:01:48]} 22. Qe2 {[%emt 0:01:18]} Qc5+ {[%emt 0:00:14]} 23. Kh1 {[%emt 0:00:22]} h5 {[%emt 0:00:06]} 24. Re1 {[%emt 0:07:01]} f5 {[%emt 0:04:52]} 25. h3 {[%emt 0:01:08]} h4 {[%emt 0:00:14]} 26. Bxh4 {[%emt 0:05:42]} Nxf4 {[%emt 0:11:47]} 27. Qf3 {[%emt 0:04:10]} Nd3 {[%emt 0:00:47]} 28. hxg4 {[%emt 0:01:10]} Nxe1 {[%emt 0:00:36]} 29. Bxe1 {[%emt 0:00:13]} fxe4 {[%emt 0:01:11]} 30. Qe2 {[%emt 0:00:50]} Rd6 {[%emt 0:02:46]} 31. g5 {[%emt 0:02:14]} Qxg5 {[%emt 0:02:47]} 32. Nxe4 {[%emt 0:01:01]} Qh6+ {[%emt 0:00:02]} 33. Kg1 {[%emt 0:00:06]} Re6 {[%emt 0:00:06]} 34. c5 {[%emt 0:04:33]} b5 {[%emt 0:00:42]} 35. Qd3 {[%emt 0:00:21]} Qf4 {[%emt 0:01:29]} 36. Rf2 {[%emt 0:00:42]} Qxe4 {[%emt 0:00:16]} 37. Rxf8+ {[%emt 0:00:18]} Kxf8 {[%emt 0:00:02]} 38. Qd8+ {[%emt 0:00:08]} Re8 {[%emt 0:02:49]} 39. Qd6+ {[%emt 0:00:05]} Qe7 {[%emt 0:00:25]} 40. Bh4 {[%emt 0:00:14]} Qxd6 {[%emt 0:02:08]} 41. cxd6 {[%emt 0:00:01]} g5 {[%emt 0:00:09]} 42. Bxg5 {[%emt 0:00:08]} Re1+ {[%emt 0:00:04]} 43. Kf2 {[%emt 0:00:05]} Rd1 {[%emt 0:00:01]} 44. Be3 {[%emt 0:00:47]} Ke8 {[%emt 0:00:14]} 45. Bxa7 {[%emt 0:00:52]} Rd2+ {[%emt 0:00:03]} 46. Kf3 {[%emt 0:00:07]} Rxa2 {[%emt 0:00:03]} 47. Bd4 {[%emt 0:00:51]} b4 {[%emt 0:00:20]} 48. Ke4 {[%emt 0:01:08]} Rxg2 0-1

[Event "XXXI Torre Memorial 2019"]
[Site "Merida"]
[Date "2019.12.14"]
[Round "2.16"]
[White "Della Morte, Pablo"]
[Black "Martinez Ramirez, Lennis"]
[Result "0-1"]
[ECO "C50"]
[WhiteElo "2295"]
[BlackElo "2454"]
[Annotator "ChessBase"]
[PlyCount "80"]
[EventDate "2019.12.13"]
[EventType "swiss"]
[EventCountry "MEX"]
[SourceTitle "playchess.com"]
[Source "ChessBase"]
[SourceQuality "1"]
[TimeControl "5400+30"]

1. e4 {[%emt 0:00:32]} Nc6 {[%emt 0:00:27]} 2. Nf3 {[%emt 0:00:34]} e5 {[%emt 0:00:23]} 3. Bc4 {[%emt 0:00:52]} Nf6 {[%emt 0:00:12]} 4. d3 {[%emt 0:00:21]} Bc5 {[%emt 0:00:41]} 5. O-O {[%emt 0:00:55]} d6 {[%emt 0:00:57]} 6. c3 {[%emt 0:01:25]} O-O {[%emt 0:06:30]} 7. Nbd2 {[%emt 0:08:19]} a6 {[%emt 0:04:14]} 8. Bb3 {[%emt 0:01:47]} Ba7 {[%emt 0:01:23]} 9. h3 {[%emt 0:00:23]} Kh8 {[%emt 0:01:22]} 10. Re1 {[%emt 0:05:59]} Ng8 {[%emt 0:02:42]} 11. Nf1 {[%emt 0:00:21]} f5 {[%emt 0:01:32]} 12. exf5 {[%emt 0:03:59]} Bxf5 {[%emt 0:01:01]} 13. Ng3 {[%emt 0:00:16]} Bg6 {[%emt 0:03:07]} 14. d4 {[%emt 0:01:47]} h6 {[%emt 0:17:59]} 15. Be3 {[%emt 0:06:17]} e4 {[%emt 0:04:39]} 16. Nd2 {[%emt 0:00:50]} d5 {[%emt 0:01:16]} 17. Qg4 {[%emt 0:13:39]} Nce7 {[%emt 0:00:42]} 18. f3 {[%emt 0:22:05]} Nf6 {[%emt 0:01:56]} 19. Qh4 {[%emt 0:01:31]} Bh7 {[%emt 0:00:28]} 20. Ngf1 {[%emt 0:00:35]} Nf5 {[%emt 0:03:05]} 21. Qf2 {[%emt 0:00:07]} c5 {[%emt 0:00:25]} 22. Rad1 {[%emt 0:06:04]} Nxe3 {[%emt 0:04:35]} 23. Qxe3 {[%emt 0:01:24]} cxd4 {[%emt 0:01:26]} 24. cxd4 {[%emt 0:00:07]} Qb6 {[%emt 0:00:13]} 25. Nb1 {[%emt 0:01:20]} exf3 {[%emt 0:00:16]} 26. Nc3 {[%emt 0:04:34]} Ng4 {[%emt 0:08:17]} 27. hxg4 {[%emt 0:00:52]} f2+ {[%emt 0:00:07]} 28. Kh1 {[%emt 0:02:02]} fxe1=Q {[%emt 0:00:09]} 29. Qxe1 {[%emt 0:00:14]} Rae8 {[%emt 0:00:58]} 30. Qd2 {[%emt 0:00:07]} Qf6 {[%emt 0:02:28]} 31. Bxd5 {[%emt 0:04:12]} Qh4+ {[%emt 0:00:57]} 32. Kg1 {[%emt 0:00:06]} Qxg4 {[%emt 0:00:11]} 33. Bxb7 {[%emt 0:04:13]} Bc2 {[%emt 0:02:59]} 34. Nh2 {[%emt 0:02:46]} Qg6 {[%emt 0:00:16]} 35. Rc1 {[%emt 0:00:29]} Bd3 {[%emt 0:00:23]} 36. Nf3 {[%emt 0:00:47]} Rxf3 {[%emt 0:01:13]} 37. Bxf3 {[%emt 0:00:06]} Bxd4+ {[%emt 0:00:04]} 38. Kh1 {[%emt 0:00:22]} Qg3 {[%emt 0:01:19]} 39. Bg4 {[%emt 0:02:22]} Qxg4 {[%emt 0:00:09]} 40. Qxd3 {[%emt 0:00:23]} Re3 {[%emt 0:00:05]} 0-1